Cogmind - Beta 15 @@@ ROGUE MODE // 2025.09.16 @ 15:47:41 Player: c4-BRK Result: Destroyed by X-77 Beamer with Gatling Laser Performance ------------- Evolutions (6) 3000 Regions Visited (5) 1000 Robots Destroyed (27) 135 Value Destroyed (1034) 1034 Prototype IDs (15) 300 Alien Tech Used (0) 0 Bonus (285) 285 TOTAL SCORE: 5754 Bonus ------- Registered with UFD 300 Friendly Fire -15 Cogmind --------- Core Integrity 0/1150 Matter 283/300 Energy 170/170 System Corruption 1% Temperature Cool (12) Movement Core (200) Ox3 Location -4/Factory Parts ------- > --- POWER (3) -------- Light Antimatter Reactor > --- PROPULSION (4) --- (None) > --- UTILITY (8) ------ (None) > --- WEAPON (4) ------- (None) > --- INVENTORY (5) ---- Scrap Suit Compact Battery (200) Improved Transmission Jammer DRS Beacon (Ready) Peak State ------------ > --- POWER ------------ Neutrino Core Micro Fission Core Quantum Reactor > --- PROPULSION ------- Carbon-fiber Leg Carbon-fiber Leg Carbon-fiber Leg Overtuned Flexi-carbon Leg > --- UTILITY ---------- Scrap Suit Experimental Heat Sink Medium Storage Unit Experimental Sensor Array Improved Transmission Jammer Advanced Hacking Suite A0-MCA's Component Scanner > --- WEAPON ----------- Gatling Laser Advanced Plasma Cannon Hypervelocity Gauss Rifle Heavy Machine Gun > --- INVENTORY -------- Quantum Reactor Scrap Suit Compact Battery Advanced Weight Redist. System Improved Transmission Jammer Advanced Shield Generator DRS Beacon [Rating: 106] Favorites ----------- Power Light Nuclear Core Engine Ion Engine Power Core Light Nuclear Core Reactor Quantum Reactor Propulsion Aluminum Leg Leg Aluminum Leg Utility Medium Storage Unit Device Experimental Sensor Array Storage Medium Storage Unit Processor A0-MCA's Component Scanner Hackware Improved Hacking Suite Weapon Heavy Laser Energy Gun Heavy Laser Energy Cannon Advanced Plasma Cannon Ballistic Gun Overtuned Coil Gun Special Weapon Improved Remote Datajack Build | -11 -10 -10 -7 -5 -4 ------- Run | Yrd Mat Sub Scr Fac Fac Slots Evolved 12 | . . . . 10 2 Power 2 | . . . . 1 1 Propulsion 2 | . . . . 2 . Utility 6 | . . . . 5 1 Weapon 2 | . . . . 2 . Parts Attached 38 | 6 . 1 5 20 6 Power 8 | 1 . . . 5 2 Engine 1 | 1 . . . . . Core 5 | . . . . 5 . Reactor 2 | . . . . . 2 Propulsion 10 | 2 . . 1 5 2 Treads . | . . . . . . Leg 10 | 2 . . 1 5 2 Wheel . | . . . . . . Hover . | . . . . . . Flight . | . . . . . . Utility 9 | 1 . . 2 5 1 Device 4 | . . . . 3 1 Storage 2 | 1 . . 1 . . Processor 1 | . . . 1 . . Hackware 2 | . . . . 2 . Protection . | . . . . . . Artifact . | . . . . . . Weapon 11 | 2 . 1 2 5 1 Energy Gun 5 | 1 . 1 2 1 . Energy Cannon 1 | . . . . 1 . Ballistic Gun 4 | 1 . . . 2 1 Ballistic Cannon . | . . . . . . Launcher . | . . . . . . Special Weapon 1 | . . . . 1 . Impact Weapon . | . . . . . . Slashing Weapon . | . . . . . . Piercing Weapon . | . . . . . . Special Melee Weapon . | . . . . . . Unidentified Prototypes . | . . . . . . Parts Lost 30 | . . 3 . 7 20 Power 5 | . . 1 . 1 3 Propulsion 9 | . . . . 3 6 Utility 7 | . . . . . 7 Weapon 9 | . . 2 . 3 4 Highest Loss Streak 13 | . . 3 . 6 13 To Critical Strikes 1 | . . . . 1 . Average Backups 2 | . . 1 2 4 4 Power . | . . . . . . Propulsion . | . . 1 . . . Utility 2 | . . . 1 3 4 Weapon . | . . . . . . Tool/Special . | . . . . . . Unused Backups 7 | . . . 1 . 6 Power 1 | . . . . . 1 Propulsion . | . . . . . . Utility 6 | . . . 1 . 5 Weapon . | . . . . . . Tool/Special . | . . . . . . Average Slot Usage (%) 72 | . 85 74 70 81 49 Core 2 | . . . . 6 6 Leg 24 | . 28 28 28 20 11 Device 5 | . . . . 14 12 Storage 10 | . 14 14 14 5 3 Processor 4 | . . . 6 5 3 Hackware 1 | . . . . 4 2 Energy Gun 13 | . 14 13 21 5 1 Energy Cannon 1 | . . . . 2 1 Ballistic Gun 3 | . 14 9 . 6 3 Special Weapon 1 | . . . . 3 . Peak Build Rating 106 | 6 6 6 23 86 106 Average Rating 36 | 3 6 5 13 74 55 On Entrance 20 | . 6 6 4 23 85 Naked Turns 62 | . . . . . 62 Heaviest Build 79 | 14 14 14 17 52 79 Greatest Support 68 | 20 20 20 20 68 68 Greatest Overweight (x) 15 | . . . . 2 15 Average Overweight (x) . | . . . . . . Largest Inventory Capacity 10 | 8 8 8 10 10 10 Average Capacity 9 | 6 8 8 9 10 8 Most Carried 10 | 5 1 2 9 10 9 Average Carried 3 | 1 . 1 2 6 6 Final Capacity 10 | 8 8 8 10 10 5 Final Carried 9 | . 1 1 9 8 5 Class Distribution -------------------- 63% | Mutant 26% | Scrapper 6% | Scavenger-Skirmisher Dominant Class ---------------- Mutant | -10/Materials Mutant | -10/Subcaves Mutant | -7/Scraptown Scrapper | -5/Factory Mutant | -4/Factory Resources | -11 -10 -10 -7 -5 -4 ----------- Run | Yrd Mat Sub Scr Fac Fac Matter Collected 937 | 194 . 122 30 568 23 Remotely . | . . . . . . Salvage Created 1125 | . . 115 . 954 56 Parts 59 | . . 4 . 50 5 Haulers Intercepted 1 | . . . . 1 . Recyclers Shooed 2 | . . . . 2 . Parts Field Recycled . | . . . . . . Retrieved Matter . | . . . . . . Parts Self-Destructed 2 | . . 2 . . . Prevented . | . . . . . . Kills | -11 -10 -10 -7 -5 -4 ------- Run | Yrd Mat Sub Scr Fac Fac Combat Hostiles Destroyed 18 | . . 2 . 15 1 Guns 11 | . . 2 . 9 . Cannons 6 | . . . . 6 . AOE 1 | . . . . . 1 Classes Destroyed 11 | . . 2 . 9 . Worker 2 | . . . . 2 . Tunneler 2 | . . . . 2 . Hauler 1 | . . . . 1 . Recycler 1 | . . . . 1 . Watcher 3 | . . . . 3 . Swarmer 8 | . . . . 8 . Grunt 2 | . . . . 2 . Sentry 2 | . . 1 . 1 . Hunter 2 | . . . . 1 1 Programmer 3 | . . . . 3 . Subdweller 1 | . . 1 . . . Best Kill Streak 9 | . . 1 . 9 1 Combat Bots Only 6 | . . 1 . 6 1 Max Kills in Single Turn 2 | . . 1 . 2 1 Gunslinging 1 | . . . . 1 . Exploded 1 | . . . . . 1 Melee . | . . . . . . Uniques/NPCs Destroyed . | . . . . . . Combat | -11 -10 -10 -7 -5 -4 -------- Run | Yrd Mat Sub Scr Fac Fac Hostile Shots Fired 408 | . . 33 . 132 243 Missed 144 | . . 10 . 48 86 Hits 264 | . . 23 . 84 157 Projectile 264 | . . 23 . 84 157 AOE 1 | . . . . . 1 Critical Strikes 7 | . . 2 . 3 2 Part Disruptions 1 | . . . . 1 . Damage Taken 4782 | . . 478 . 1455 2849 Core 1420 | . . 148 . 114 1158 Absorbed by Shields . | . . . . . . Regen/Repaired (Parts) 16 | . . . . 16 . Core Remaining (%) 76 | 100 . . 40 88 . Volleys Fired 87 | . . 21 . 60 6 Largest 4 | . . 2 . 3 4 Hottest 241 | . . 60 . 208 241 Shots Fired 216 | . . 33 . 165 18 Gun 161 | . . 33 . 113 15 Cannon 51 | . . . . 48 3 Launcher . | . . . . . . Special 4 | . . . . 4 . Kinetic 115 | . . 17 . 88 10 Thermal 85 | . . 4 . 73 8 Explosive . | . . . . . . Electromagnetic 12 | . . 12 . . . Robot Hit Streak 28 | . . 28 . 12 5 Robot Miss Streak 8 | . . 1 . 8 5 Penetration Max 1 | . . . . 1 . Secondary Targets 2 | . . . . 2 . Max Gunslinging Chain 1 | . . . . 1 . Shots Hit Robots 122 | . . 31 . 83 8 Core Hits 48 | . . 5 . 35 8 Critical Kills 1 | . . . . 1 . Critical Parts Destroyed 2 | . . . . 2 . Critical Strikes 3 | . . . . 3 . Destroy 3 | . . . . 3 . Melee Attacks . | . . . . . . Impact . | . . . . . . Slashing . | . . . . . . Piercing . | . . . . . . Sneak Attacks . | . . . . . . Combat Hostiles . | . . . . . . Follow-up Attacks . | . . . . . . Damage Inflicted 2948 | . . 151 . 2489 308 Guns 1689 | . . 98 . 1455 136 Cannons 942 | . . . . 942 . Explosions 317 | . . 53 . 92 172 Melee . | . . . . . . Ramming . | . . . . . . Kinetic 1261 | . . 41 . 1186 34 Thermal 1493 | . . 88 . 1303 102 Explosive 172 | . . . . . 172 Electromagnetic 22 | . . 22 . . . Impact . | . . . . . . Slashing . | . . . . . . Piercing . | . . . . . . Highest Corruption 3 | . . . . 3 1 Average Corruption 1 | . . . . 1 1 Corruption Purged . | . . . . . . Corruption Blocked . | . . . . . . Effects 9 | . . . . 5 4 Message Errors 4 | . . . . 3 1 Matter Fused 3 | . . . . 1 2 Heat Flow Errors 1 | . . . . . 1 Alerts 1 | . . . . 1 . Overload Shots . | . . . . . . Overflow Damage 82 | . . . . 82 . Projectiles 46 | . . . . 46 . Explosions 36 | . . . . 36 . Melee . | . . . . . . Knockbacks . | . . . . . . Impact . | . . . . . . Kinetic . | . . . . . . Secondary . | . . . . . . Self-Inflicted Damage . | . . . . . . Shots . | . . . . . . Rammed . | . . . . . . Targets Rammed 1 | . . . . 1 . Kicked 1 | . . . . 1 . Crushed . | . . . . . . Highest Temperature 416 | . . . . 416 302 Average Temperature 112 | . . . . 105 156 Received Heat Transfer 591 | . . 90 . 63 438 Effects 1 | . . . . 1 . Shutdowns 1 | . . . . 1 . Siege Activations . | . . . . . . Martial Activations . | . . . . . . Shielding Activations . | . . . . . . Robots Disrupted . | . . . . . . Combat Hostiles . | . . . . . . Robots Corrupted . | . . . . . . Combat Hostiles . | . . . . . . Parts Fried . | . . . . . . Impact Corruptions . | . . . . . . Robots Melted . | . . . . . . Combat Hostiles . | . . . . . . Parts Melted 6 | . . 1 . 5 . Heat Transferred 2343 | . . 150 . 1968 225 Parts Sabotaged . | . . . . . . Parts Stolen . | . . . . . . Parts Stripped . | . . . . . . Power Chain Reactions 1 | . . 1 . . . Alert | -11 -10 -10 -7 -5 -4 ------- Run | Yrd Mat Sub Scr Fac Fac Maximum Alert Level 1 | . . . . 1 1 Low Security (%) 78 | 100 100 . . 72 96 Level 1 21 | . . . . 27 3 Level 2 . | . . . . . . Level 3 . | . . . . . . Level 4 . | . . . . . . Level 5 . | . . . . . . High Security . | . . . . . . Max Security . | . . . . . . Peak Influence 340 | . . . . 340 249 Initial 143 | . . . . . 143 Average 117 | . . . . 127 118 Influence Increases 893 | . . 20 . 627 246 Destroy 0b10 Robot/C 340 | . . 20 . 300 20 Destroy 0b10 Robot/NC 45 | . . . . 45 . Destroy Leader 78 | . . . . 78 . Successful Hack 21 | . . . . . 21 Disable Machine 150 | . . . . 105 45 Destroy Structure 154 | . . . . 84 70 Lose Combat Pursuer 105 | . . . . 15 90 Influence Decreases 834 | . . 20 . 334 480 Entered New Map 150 | . . . . . 150 Time Decay 414 | . . 20 . 264 130 Lost Part 270 | . . . . 70 200 Squads Dispatched 11 | . . . . 5 6 Investigation 2 | . . . . . 2 Extermination 2 | . . . . 2 . Reinforcement 7 | . . . . 3 4 Assault . | . . . . . . Garrison . | . . . . . . Intercept . | . . . . . . Searches Triggered . | . . . . . . Construction Impeded . | . . . . . . Haulers Reinforced . | . . . . . . Active Scanning Responses . | . . . . . . Cargo Convoy Interrupts . | . . . . . . Stealth | -11 -10 -10 -7 -5 -4 --------- Run | Yrd Mat Sub Scr Fac Fac Distress Signals 2 | . . . . 2 . Communications Jammed 1 | . . . . . 1 Distress Signals 1 | . . . . . 1 Times Spotted 40 | . . 3 . 24 13 Peak Tracking Total 7 | . . 2 . 7 7 Tactical Retreats 5 | . . . . 1 4 Traps | -11 -10 -10 -7 -5 -4 ------- Run | Yrd Mat Sub Scr Fac Fac Traps Triggered 1 | . . . . 1 . Indirectly . | . . . . . . Trap Hack Attempts . | . . . . . . Triggered . | . . . . . . Disarmed . | . . . . . . Reprogrammed . | . . . . . . Reused . | . . . . . . Traps Extracted . | . . . . . . Installed . | . . . . . . Triggered . | . . . . . . Machines | -11 -10 -10 -7 -5 -4 ---------- Run | Yrd Mat Sub Scr Fac Fac Machines Disabled 10 | . . . . 7 3 Max in Single Turn 4 | . . . . 4 1 Machines Repaired . | . . . . . . Machines Dismantled . | . . . . . . Machines Sabotaged . | . . . . . . Overloaded Fab Kills . | . . . . . . Hacking | -11 -10 -10 -7 -5 -4 --------- Run | Yrd Mat Sub Scr Fac Fac Machines Accessed 7 | . . . 2 3 2 Terminals 4 | . . . . 3 1 Fabricators 1 | . . . . . 1 Repair Stations . | . . . . . . Recycling Units . | . . . . . . Scanalyzers . | . . . . . . Garrison Access . | . . . . . . Total Hacks 16 | . . . 5 6 5 Successful 10 | . . . 5 4 1 Failed 6 | . . . . 2 4 Catastrophic 3 | . . . . 1 2 Database Lockouts . | . . . . . . Manual . | . . . . . . Terminals 8 | . . . . 6 2 Fabricators 3 | . . . . . 3 Repair Stations . | . . . . . . Recycling Units . | . . . . . . Scanalyzers . | . . . . . . Garrison Access . | . . . . . . Terminal Hacks 9 | . . . 5 4 . Record 5 | . . . 4 1 . Open Door 1 | . . . . 1 . Recall Reinforcements 1 | . . . . 1 . Hauler Manifests 1 | . . . . 1 . Proto ID Catalog 1 | . . . 1 . . Fabricator Hacks 1 | . . . . . 1 Build 1 | . . . . . 1 Repair Station Hacks . | . . . . . . Recycling Unit Hacks . | . . . . . . Scanalyzer . | . . . . . . Garrison Access Hacks . | . . . . . . Unauthorized Hacks . | . . . . . . Terminals . | . . . . . . Fabricators . | . . . . . . Repair Stations . | . . . . . . Recycling Units . | . . . . . . Scanalyzers . | . . . . . . Garrison Access . | . . . . . . Data Cores Recovered . | . . . . . . Used . | . . . . . . Hacking Detections 3 | . . . . 1 2 Full Trace Events 2 | . . . . . 2 Feedback Events 1 | . . . . . 1 Corruption 1 | . . . . . 1 Feedback Blocked . | . . . . . . Robot Schematics Acquired . | . . . . . . Robots Built . | . . . . . . Authchips . | . . . . . . Time . | . . . . . . Total Robot Build Rating . | . . . . . . Part Schematics Acquired . | . . . . . . Parts Built 2 | . . . . . 2 Authchips . | . . . . . . Time 46 | . . . . . 46 Total Part Build Rating 18 | . . . . . 18 Parts Repaired . | . . . . . . Time . | . . . . . . Parts Recycled . | . . . . . . Recycled Matter . | . . . . . . Retrieved Matter . | . . . . . . Retrieved Components . | . . . . . . Parts Scanalyzed . | . . . . . . Part Schematics Acquired . | . . . . . . Parts Damaged . | . . . . . . Bothacking | -11 -10 -10 -7 -5 -4 ------------ Run | Yrd Mat Sub Scr Fac Fac Used RIF Installer . | . . . . . . Robots Hacked 1 | . . . . 1 . Non-combat . | . . . . . . Combat . | . . . . . . Robot Hacks Applied . | . . . . . . Manual 1 | . . . . 1 . Relay Couplers Released . | . . . . . . Fabnet Peak Effective % . | . . . . . . Robots Rewired . | . . . . . . Allies Hacked . | . . . . . . Hacks Repelled . | . . . . . . Allies | -11 -10 -10 -7 -5 -4 -------- Run | Yrd Mat Sub Scr Fac Fac Total Allies . | . . . . . . Largest Group . | . . . . . . Highest-Rated Group . | . . . . . . Highest-Rated Ally . | . . . . . . Total Orders . | . . . . . . Ally Attacks . | . . . . . . Total Damage . | . . . . . . Kills . | . . . . . . Allies Corrupted . | . . . . . . Allies Melted . | . . . . . . Intel | -11 -10 -10 -7 -5 -4 ------- Run | Yrd Mat Sub Scr Fac Fac Active Infowar (turns) 833 | . . . . 653 180 Sensors 833 | . . . . 653 180 Jamming 165 | . . . . . 165 Robot Analysis Total . | . . . . . . Derelict Logs Recovered . | . . . . . . Drone Launches . | . . . . . . Drone Recoveries . | . . . . . . Exploration | -11 -10 -10 -7 -5 -4 ------------- Run | Yrd Mat Sub Scr Fac Fac Turns Passed 3309 | 54 45 260 1560 1118 272 Spaces Moved 2313 | 49 24 132 1280 587 241 Core 181 | 22 . . . . 159 Treads . | . . . . . . Legs 2132 | 27 24 132 1280 587 82 Wheels . | . . . . . . Hover . | . . . . . . Flight . | . . . . . . Fastest Speed 50 | 50 120 120 120 105 50 Average Speed 119 | 88 120 120 120 136 81 Slowest Speed 800 | 120 120 120 120 230 800 Overloaded Moves . | . . . . . . Propulsion Burnouts . | . . . . . . Robots Hopped . | . . . . . . Potential Cave-ins . | . . . . . . Cave-ins Triggered . | . . . . . . Exploration Rate (%) 21 | 3 7 14 86 11 9 Regions Visited 5 Branch Regions 2 Pre-discovered Areas 1 | . . . 1 . . Known Exits Taken . | . . . . . . Unknown Exits Taken 5 | 1 1 1 1 1 . Scrap Searched 2 | . . . 2 . . Spaces Dug . | . . . . . . Terrain Destroyed 91 | . . . . 48 43 Melee . | . . . . . . Projectile 42 | . . . . 41 1 AOE 49 | . . . . 7 42 Terrain Rammed . | . . . . . . Walls Destroyed . | . . . . . . Machines Disabled . | . . . . . . Actions | -11 -10 -10 -7 -5 -4 --------- Run | Yrd Mat Sub Scr Fac Fac Total 2714 | 59 40 202 1305 806 302 Wait 233 | . 16 48 4 119 46 Move 2308 | 48 23 131 1279 586 241 Hop . | . . . . . . Pick Up 38 | 5 1 1 12 16 3 Fast Attach 6 | 1 . . . 2 3 Attach 26 | 5 . 1 3 14 3 Detach 1 | . . . 1 . . Swap 6 | . . . 2 4 . Drop 8 | . . . 4 4 . Fire 87 | . . 21 . 60 6 Melee . | . . . . . . Ram . | . . . . . . Kick 1 | . . . . 1 . Crush . | . . . . . . Escape Stasis . | . . . . . . Rewire . | . . . . . . Trap . | . . . . . . Miscellaneous . | . . . . . . Route ------- -11/Scrapyard -10/Materials -10/Subcaves -7/Scraptown (discovered 2 exits: *Fac x2) -5/Factory (discovered 2 exits: *Fac / [*Ext]) -4/Factory History --------- Turn | Location | Event 32 | -11/Scrapyard | Discovered new exit (range 12) 55 | -11/Scrapyard | Entered Materials 56 | -10/Materials | Met a group of wandering Federalists 95 | -10/Materials | Discovered new exit (range 6) 100 | -10/Materials | Entered Subcaves 101 | -10/Subcaves | Continued accompanying wandering Federalists (5) 262 | -10/Subcaves | Core integrity fell below 50% 270 | -10/Subcaves | Lost 4 allies 305 | -10/Subcaves | Lost 3 parts (1p2w) 318 | -10/Subcaves | Build established: Mutant 354 | -10/Subcaves | Wandering Federalist uncovered a shortcut to Scraptown 360 | -10/Subcaves | Entered Scraptown 610 | -7/Scraptown | Discovered new exit (range 7) 684 | -7/Scraptown | Visited Symbiants 707 | -7/Scraptown | Visited CPS Storage 726 | -7/Scraptown | Visited Spacefarers 805 | -7/Scraptown | Learned location of Extension (-5) 848 | -7/Scraptown | Visited SPCMW 864 | -7/Scraptown | Visited Cave Peace 883 | -7/Scraptown | Visited Junk Repository 1033 | -7/Scraptown | Visited Shadow of the Wyrm 1052 | -7/Scraptown | Visited UFD Registry 1052 | -7/Scraptown | Registered with UFD as "Metalmech" 1082 | -7/Scraptown | Visited LU-1G1's Boring Crew 1159 | -7/Scraptown | Visited Abandonware Association 1167 | -7/Scraptown | Learned abandonware demo "OVRCLOCK.EXE" 1176 | -7/Scraptown | Learned abandonware demo "SHUTEYE.EXE" 1176 | -7/Scraptown | Learned abandonware demo "TRNCOAT.EXE" 1218 | -7/Scraptown | Visited A0-MCA Data Center 1225 | -7/Scraptown | Given a C rating by A0-MCA 1231 | -7/Scraptown | Found A0-MCA's Component Scanner 1396 | -7/Scraptown | Visited Chapter 10 1435 | -7/Scraptown | Visited Derelict Rescue Squad 1442 | -7/Scraptown | Found DRS Beacon 1466 | -7/Scraptown | Visited Scrap Suit Storage 1482 | -7/Scraptown | Found Scrap Suit 1510 | -7/Scraptown | Visited Science Guys 1579 | -7/Scraptown | Visited Infowarlord's Domain 1588 | -7/Scraptown | Found Exp. Sensor Array 1613 | -7/Scraptown | Visited Modified Component R&D 1864 | -7/Scraptown | Found Scrap Suit 1914 | -7/Scraptown | Discovered new exit (range 5) 1920 | -7/Scraptown | Entered Factory 1920 | -5/Factory | Evolved 10 slots: Power x1, Propulsion x2, Utility x5, Weapon x2 2224 | -5/Factory | Build established: Scrapper 2719 | -5/Factory | Discovered new exit (range 6) 2867 | -5/Factory | Lost 6 parts (1p3n2w) 2968 | -5/Factory | Discovered new exit (range 6) 3038 | -5/Factory | Entered another Factory area 3038 | -4/Factory | Evolved 2 slots: Power x1, Utility x1 3104 | -4/Factory | Fabricated Quantum Reactor (x2) 3176 | -4/Factory | Lost 7 parts (1n2u4w) 3232 | -4/Factory | Core integrity fell below 50% 3253 | -4/Factory | Spotted B-86 Titan 3258 | -4/Factory | Core integrity fell below 20% 3273 | -4/Factory | Lost 13 parts (3p5n5u) 3310 | -4/Factory | Destroyed by X-77 Beamer with Gatling Laser Last Messages --------------- Acquired Myomer Leg. U-05 Engineer builds a Wall. Acquired 20 matter. U-05 Engineer builds a Door. U-05 Engineer lays Concrete. Myomer Leg destroyed. U-05 Engineer builds a Wall. U-05 Engineer lays Concrete. Slug penetrates Subcomponent Replicator. Subcomponent Replicator disabled. System corrupted: Matter fused (-7). O-24 Administrator: "IFF HANDSHAKE FAILED. SECURING TERMINAL." ALERT: Hostiles spotted, dispatching reinforcements to Terminal F005. Connecting with Terminal... ALERT: Suspicious activity at Terminal F020. Dispatching Investigation squad. Acquired Lgt. Antimatter Reactor. Drone sends a signal. Map ----- +----------------------------------------------------+ | ???????????????????????????????????????????? | | ???????????????????????????????????????????? | | ???????????????????????????????????????????? | | ???????????????????????????????????????????? | | ???????????????????????????????????????????? | | ???????????????????????????????????????????? | | ???????????????????????????????????????????? | | ???????????????????????????????????????????? | | ???????????????????????????????????????????? | | ???????????????????????????????????????????? | | ???????????????????????????????????????????? | | ???????????????????????????????????????????? | | ???????????????????????????????????????????? | | ???????????????????????????????????????????? | | ???????????????????????????????????????????? | | ?????????##############????????????????????? | | ?????????# #????????????????????? | | ?????????# """ """ #????????????????????? | | ?????????# """ """ #????????????????????? | | ?????????# """ """ #????????????????????? | | ?????????# #????????????????????? | | ?????????# """ """ #????????????????????? | | ?????????# """ """ #????????????????????? | | ?????????# """ """ #????????????????????? | | ?????????# #????????????????????? | | ?????????# @ #????????????????????? | | ?????????# #????????????????????? | | ?????????# x +????????????????????? | | ?????###########+###### #?????????????#??? | | ?????# #????????????? ??? | | ?????# #???????????? "?? | | ?????# #???????????" "?? | | ?????# #???????????" ?? | | ?????# #???????????" ?? | | ?????### ##### #???????? | | ???????# #???# #?????????""" """ | | ???????# #???# #?????????""" """ | | ???????# ##########?# +??????????"" ""? | | ???????# # #?# #?????????? ? | | ???????# + ### ###????????? ?? | | ???????# # # #????????? ?? | | ???????# # # ###########+##? | | ???????# + # ! ## | | ???????# #### """""" + T | | ???????# #??# """""" # | | ???????# #??# """""" # ########## | | ??????? ??# """""" # #????????# | | ??????? ??#############"####??####### | | ??????? " ??????????????? ????+ | | ?????? ???????????????" ????###### | +----------------------------------------------------+ Best States ------------- Heat Dissipation 69 Energy Generation 49 Energy Capacity 615 Matter Stores 300 Matter Capacity 300 Sight Range 16 Robot Scan Range 20 Terrain Scan Density 10 Jamming Range 14 Evasion (%) 55 Offensive Hacking 14 Item Schematics ----------------- None Robot Schematics ------------------ None Fabricated ------------ Quantum Reactor | x2 | -4/Factory | Preloaded Repaired ---------- Nothing Alien Tech Used ----------------- None Achievements -------------- None Challenges ------------ None Game ------ Seed DisruptionFlyingPod Manual? 0 Play Time 00:31:36 Cumulative 20.6 hours Start 2025.09.16 @ 15:17:45 End 2025.09.16 @ 15:47:41 Sessions 1 Manual Loads 0 Difficulty Rogue Special Mode None Game No. 22 Rogue 1 Adventurer 21 Explorer 0 Win Type - Total 1 Types 0/0/0/0/0/0/0/1/0/0 Lore% 45 Gallery% 31 Achievement% 37 Wizard Run 0 Options --------- Layout 1 ASCII 0 Keyboard 0 Movement Mouse Keybinds 0 Fullscreen 2 Font 24/Smallcaps Map View 50x35 Zoom Use 0% Tactical HUD 0 Map Filters NONE Filters NONE Steam 1 RUN: 62d7afee-2161-4f8a-80fc-565104efad98